bitfinex/quotes_BTCUSD_20250723
["timestamp","ask_amount","ask_price","bid_price","bid_amount"]
[1753299899350,0.74556134,118460.0,118450.0,0.36307964]
[1753299900251,0.58328134,118460.0,118450.0,0.36504964]
[1753299900492,0.74544134,118460.0,118450.0,4.9e-05]
[1753299900730,0.74840134,118460.0,118450.0,0.36307964]
[1753299900933,0.74544134,118460.0,118450.0,0.36307964]
[1753299901550,0.74544134,118460.0,118450.0,0.36504964]
[1753299901770,0.82991864,118460.0,118450.0,0.36307964]
[1753299901964,0.41583232,118460.0,118450.0,0.36821964]
[1753299902184,0.37587846,118460.0,118450.0,0.6020359]
[1753299902384,0.39276143,118460.0,118450.0,0.59359402]
[1753299902589,0.39276136,118460.0,118450.0,0.60203604]
[1753299902784,0.38431984,118460.0,118450.0,0.59359402]
[1753299903017,0.24491832,118460.0,118450.0,0.61047785]
[1753299903198,0.1498424,118460.0,118450.0,0.61047785]
[1753299903403,0.14140102,118460.0,118450.0,0.61047785]
[1753299903799,0.14984226,118460.0,118450.0,0.61047785]
[1753299904196,0.15628364,118460.0,118450.0,0.60203597]
[1753299904401,0.32511757,118460.0,118450.0,0.18973661]
[1753299904652,0.32511757,118460.0,118450.0,0.56965179]
[1753299905142,0.33355923,118460.0,118450.0,0.56965193]
[1753299905341,0.33355923,118460.0,118450.0,0.56120955]
[1753299905574,0.33355923,118460.0,118450.0,0.56965178]
[1753299905782,0.15628421,118460.0,118450.0,0.58653603]
[1753299906594,0.14784254,118460.0,118450.0,0.58653575]
[1753299906799,0.14784254,118460.0,118450.0,0.60253575]
[1753299907002,0.16882169,118470.0,118460.0,0.17727502]
[1753299907003,0.0168814,118470.0,118460.0,0.17727502]
[1753299907223,0.41801914,118470.0,118460.0,0.54548566]
[1753299907427,0.41801914,118470.0,118460.0,0.55392725]
[1753299908150,0.40957876,118470.0,118460.0,0.537044]
[1753299908359,0.41057876,118470.0,118460.0,0.537044]
[1753299908690,0.40213817,118470.0,118460.0,0.537044]
[1753299909555,0.40426817,118470.0,118460.0,0.537044]
[1753299909918,0.40426817,118470.0,118460.0,0.54548566]
[1753299910126,0.40426817,118470.0,118460.0,0.537044]
[1753299910453,0.40426817,118470.0,118460.0,0.17401336]
[1753299910653,0.40526817,118470.0,118460.0,0.537044]
[1753299911962,0.2364487,118470.0,118460.0,0.537044]
[1753299912182,0.41157876,118470.0,118460.0,0.537044]
[1753299912427,0.41157876,118470.0,118460.0,0.55392718]
[1753299912819,0.41157876,118470.0,118460.0,0.55392725]
[1753299912944,0.41157876,118470.0,118460.0,0.537044]
[1753299913421,0.41157876,118470.0,118460.0,0.54548559]
[1753299913619,0.41157876,118470.0,118460.0,0.56158559]
[1753299913893,0.41157876,118470.0,118460.0,0.57002711]
[1753299914047,0.41157876,118470.0,118460.0,0.56158559]
[1753299914245,0.24275965,118470.0,118460.0,0.56158559]
[1753299914488,0.25119982,118470.0,118460.0,0.57002711]
[1753299914711,0.42001893,118470.0,118460.0,0.537044]
[1753299915082,0.40313796,118470.0,118460.0,0.537044]
[1753299915303,0.40526796,118470.0,118460.0,0.537044]
[1753299915525,0.48974526,118470.0,118460.0,0.17401336]
[1753299915820,0.48974526,118470.0,118460.0,0.537044]
[1753299916517,0.40526796,118470.0,118460.0,0.537044]
[1753299917552,0.27430796,118470.0,118460.0,0.537044]
[1753299917711,0.40526796,118470.0,118460.0,0.537044]
[1753299917925,0.22800797,118470.0,118460.0,0.54548559]
[1753299918129,0.42001922,118470.0,118460.0,0.537044]
[1753299918363,0.41157877,118470.0,118460.0,0.537044]
[1753299919166,0.41157877,118470.0,118460.0,0.54548566]
[1753299919401,0.24275966,118470.0,118460.0,0.56236877]
[1753299919587,0.24275966,118470.0,118460.0,0.55392725]
[1753299920022,0.41157877,118470.0,118460.0,0.54548566]
[1753299920375,0.41157877,118470.0,118460.0,0.55392725]
[1753299920887,0.002,118470.0,118460.0,0.96494043]
[1753299921110,0.13292,118470.0,118460.0,0.96494043]
[1753299921561,0.002,118470.0,118460.0,1.43586043]
[1753299921801,0.002,118470.0,118460.0,1.52033773]
[1753299922459,0.001,118470.0,118460.0,1.52033773]
[1753299922875,0.13928072,118490.0,118480.0,0.22562472]
[1753299923083,0.13928072,118490.0,118480.0,0.953656]
[1753299923289,0.13928072,118490.0,118480.0,0.956866]
[1753299925009,0.15615878,118490.0,118480.0,0.956866]
[1753299925442,0.15615878,118490.0,118480.0,0.96530581]
[1753299925642,0.14771968,118490.0,118480.0,0.96530581]
[1753299925859,0.15615871,118490.0,118480.0,0.96530581]
[1753299926128,0.16459788,118490.0,118480.0,0.96530581]
[1753299926344,0.15615871,118490.0,118480.0,0.96530581]
[1753299927223,0.16459788,118490.0,118480.0,0.96530581]
[1753299927459,0.15615871,118490.0,118480.0,0.96530581]
[1753299928675,0.14771968,118490.0,118480.0,0.96530581]
[1753299928899,0.13928072,118490.0,118480.0,0.96530581]
[1753299929552,0.14771968,118490.0,118480.0,0.96530581]
[1753299929752,0.1477196,118490.0,118480.0,0.96530581]
[1753299930417,0.1477196,118490.0,118480.0,0.95686607]
[1753299930618,0.1477196,118490.0,118480.0,0.96530581]
[1753299931490,0.15364612,118490.0,118480.0,0.96530581]
[1753299931910,0.14520709,118490.0,118480.0,0.96530581]
[1753299932120,0.16208515,118490.0,118480.0,0.96530581]
[1753299932550,0.15364605,118490.0,118480.0,0.96530581]
[1753299932763,0.16208515,118490.0,118480.0,0.96530581]
[1753299933147,0.16208508,118490.0,118480.0,0.96530581]
[1753299933563,0.15364605,118490.0,118480.0,0.96530581]
[1753299934609,0.16208515,118490.0,118480.0,0.96530581]
[1753299935018,0.16208508,118490.0,118480.0,0.96530581]
[1753299935259,0.14520724,118490.0,118480.0,0.96530581]
[1753299935799,0.14520717,118490.0,118480.0,0.96530581]
[1753299936107,0.15364627,118490.0,118480.0,0.96530581]
[1753299936616,0.14520717,118490.0,118480.0,0.96530581]
[1753299936797,0.34386844,118490.0,118480.0,0.5338055]
[1753299937097,0.1581987,118490.0,118480.0,0.55715543]
[1753299937313,0.16663787,118490.0,118480.0,0.5591755]
[1753299937502,0.1666378,118490.0,118480.0,0.55384562]
[1753299937729,0.1666378,118490.0,118480.0,0.5622855]
[1753299937863,0.16663773,118490.0,118480.0,0.5622855]
[1753299938074,0.17507704,118490.0,118480.0,0.55259159]
[1753299938652,0.17507697,118490.0,118480.0,0.56103154]
[1753299939151,0.17507697,118490.0,118480.0,0.55259159]
[1753299939769,0.17507697,118490.0,118480.0,0.55259167]
[1753299939998,0.17507697,118490.0,118480.0,0.56103169]
[1753299940175,0.16663773,118490.0,118480.0,0.56947157]
[1753299940382,0.17507697,118490.0,118480.0,0.56947164]
[1753299940597,0.17507697,118490.0,118480.0,0.56103169]
[1753299940748,0.18351635,118490.0,118480.0,0.54415157]
[1753299940961,0.18351635,118490.0,118480.0,0.55259167]
[1753299941608,0.18351635,118490.0,118480.0,0.56103169]
[1753299941907,0.17507697,118490.0,118480.0,0.57791152]
[1753299942517,0.17507697,118490.0,118480.0,0.56947164]
[1753299942728,0.1497596,118490.0,118480.0,0.94094202]
[1753299942915,0.00836072,118490.0,118480.0,0.94094202]
[1753299943172,0.15619729,118490.0,118480.0,0.93250228]
[1753299943323,0.16463653,118490.0,118480.0,0.19800105]
[1753299943536,0.15619715,118490.0,118480.0,0.92406233]
[1753299943940,0.17298508,118490.0,118480.0,0.93250228]
[1753299944363,0.17298508,118490.0,118480.0,0.91562231]
[1753299944570,0.34177626,118490.0,118480.0,0.89874204]
[1753299944780,0.34385626,118490.0,118480.0,0.5357114]
[1753299944986,0.33541716,118490.0,118480.0,0.5357114]
[1753299945207,0.35885669,118490.0,118480.0,0.54104164]
[1753299945400,0.35885669,118490.0,118480.0,0.5326014]
[1753299945811,0.35885669,118490.0,118480.0,0.54104164]
[1753299946134,0.18162655,118490.0,118480.0,0.54104164]
[1753299946337,0.1581871,118490.0,118480.0,0.55792176]
[1753299946573,0.1581871,118490.0,118480.0,0.56947171]
[1753299946574,0.15818675,118490.0,118480.0,0.56947171]
[1753299946776,0.15818668,118490.0,118480.0,0.57791152]
[1753299946986,0.15818668,118490.0,118480.0,0.94094166]
[1753299947196,0.1476675,118490.0,118480.0,0.94094166]
[1753299947405,0.15610653,118490.0,118480.0,0.93250192]
[1753299947613,0.17298515,118490.0,118480.0,0.90718214]
[1753299947828,0.17298515,118490.0,118480.0,0.55259167]
[1753299948037,0.16454577,118490.0,118480.0,0.56103169]
[1753299948246,0.17298515,118490.0,118480.0,0.56103169]
[1753299948447,0.15610653,118490.0,118480.0,0.56103169]
[1753299948604,0.13922862,118490.0,118480.0,0.95634202]
[1753299948812,0.13922862,118490.0,118480.0,0.97284202]
[1753299950913,0.13088,118490.0,118480.0,0.97284202]
[1753299952556,0.32,118500.0,118490.0,0.16879061]
[1753299952767,0.54379547,118500.0,118490.0,0.57515897]
[1753299952970,0.54379547,118500.0,118490.0,0.57826897]
[1753299953179,0.17,118500.0,118490.0,0.57826897]
[1753299953386,0.17,118500.0,118490.0,0.59376897]
[1753299953605,0.30088,118500.0,118490.0,0.59376897]
[1753299953809,0.30237125,118500.0,118490.0,0.59376897]
[1753299953991,0.31102815,118500.0,118490.0,0.59376897]
[1753299954218,0.31002815,118500.0,118490.0,0.59376897]
[1753299954555,0.30137125,118500.0,118490.0,0.59376897]
[1753299954760,0.30137125,118500.0,118490.0,0.72460897]
[1753299954980,0.30237125,118500.0,118490.0,0.72460897]
[1753299955182,0.30137125,118500.0,118490.0,0.72460897]
[1753299956973,0.17049125,118500.0,118490.0,0.72460897]
[1753299958579,0.17049125,118500.0,118490.0,0.59376897]
[1753299958788,0.17049125,118500.0,118490.0,0.72460897]
[1753299959168,0.17049125,118500.0,118490.0,0.59476897]
[1753299959374,0.17049125,118500.0,118490.0,0.72660897]
[1753299960913,0.17049125,118500.0,118490.0,0.23273833]
[1753299961122,0.20062438,118500.0,118490.0,0.72660897]
[1753299961329,0.17049125,118500.0,118490.0,0.72660897]
[1753299965175,0.57049125,118500.0,118490.0,0.72660897]
[1753299971548,0.40049125,118500.0,118490.0,0.72660897]
[1753299973142,0.00049125,118500.0,118490.0,0.72660897]
[1753299991303,0.00049125,118500.0,118490.0,1.17973679]
[1753299991469,0.00049125,118500.0,118490.0,1.04889679]
[1753299991679,0.13133125,118500.0,118490.0,1.03339679]
[1753299992728,0.13133125,118500.0,118490.0,1.01739679]
[1753299992898,0.00049125,118500.0,118490.0,1.01739679]
[1753299993334,0.40049125,118500.0,118490.0,1.01739679]
[1753299993537,0.40049125,118500.0,118490.0,1.14823679]
[1753299996067,0.40049125,118500.0,118490.0,1.16373679]
[1753299996511,0.40049125,118500.0,118490.0,1.17873679]
[1753299996731,0.40153165,118500.0,118490.0,1.17873679]
[1753299998060,0.40153165,118500.0,118490.0,1.16373679]
[1753299999263,0.40153165,118500.0,118490.0,1.14823679]
[1753300000831,0.40357165,118500.0,118490.0,1.14823679]
[1753300001075,0.43767165,118500.0,118490.0,1.01226679]
[1753300001287,0.44610997,118500.0,118490.0,0.58730929]
[1753300001497,0.52236967,118500.0,118490.0,0.59574868]
[1753300001711,0.45454843,118500.0,118490.0,0.60418785]
[1753300001925,0.44610989,118500.0,118490.0,0.61262688]
[1753300002188,0.45454821,118500.0,118490.0,0.61262688]
[1753300002405,0.44610989,118500.0,118490.0,0.61262688]
[1753300002904,0.45454821,118500.0,118490.0,0.61262688]
[1753300003132,0.44610989,118500.0,118490.0,0.61262688]
[1753300003357,0.43767165,118500.0,118490.0,0.56739294]
[1753300003832,0.44610982,118500.0,118490.0,0.56739294]
[1753300005975,0.43467165,118500.0,118490.0,0.56739294]
[1753300006186,0.43467165,118500.0,118490.0,0.57260294]
[1753300006406,0.40153165,118500.0,118490.0,0.57260294]
[1753300006614,0.40153165,118500.0,118490.0,0.73488294]
[1753300012940,0.00153165,118500.0,118490.0,1.07488294]
[1753300020757,0.00153165,118500.0,118490.0,1.15936024]
[1753300021646,1e-08,118500.0,118490.0,1.52220553]
[1753300022558,1e-08,118500.0,118490.0,1.52212553]
[1753300022805,1e-08,118500.0,118490.0,1.52112553]
[1753300023011,1e-08,118500.0,118490.0,1.15728024]
[1753300023231,1e-08,118500.0,118490.0,1.15736024]
[1753300023433,1e-08,118500.0,118490.0,1.15936024]
[1753300023644,1e-08,118500.0,118490.0,1.52220553]
[1753300023851,1e-08,118500.0,118490.0,1.52020553]
[1753300024076,1e-08,118500.0,118490.0,1.52520553]
[1753300024413,1e-08,118500.0,118490.0,1.52420553]
[1753300024635,1e-08,118500.0,118490.0,1.52720553]
[1753300027852,1e-08,118500.0,118490.0,1.55256253]
[1753300039177,1e-08,118500.0,118490.0,2.05073623]
[1753300041622,1e-08,118500.0,118490.0,2.02537923]
[1753300044515,1e-08,118500.0,118490.0,2.05073523]
[1753300054819,0.0315,118530.0,118520.0,0.1940592]
[1753300055042,0.03364436,118530.0,118520.0,1.14072872]
[1753300055250,0.03364436,118530.0,118520.0,1.14273872]
[1753300055467,0.03364436,118530.0,118520.0,1.14588872]
[1753300056130,0.03364436,118530.0,118520.0,1.14072872]
[1753300056540,0.03666436,118530.0,118520.0,1.14072872]
[1753300057224,0.03666436,118530.0,118520.0,1.14172872]
[1753300057982,0.03666436,118530.0,118520.0,1.14272872]
[1753300060913,0.03666436,118530.0,118520.0,1.01196872]
[1753300061116,0.03666436,118530.0,118520.0,1.14296872]
[1753300064764,0.17450501,118530.0,118520.0,0.58713997]
[1753300064930,0.17450501,118530.0,118520.0,0.60401396]
[1753300065107,0.03666436,118530.0,118520.0,1.01196872]
[1753300065311,0.16746436,118530.0,118520.0,1.01196872]
[1753300065917,0.03666436,118530.0,118520.0,1.01196872]
[1753300066211,0.16746436,118530.0,118520.0,1.01196872]
[1753300074621,0.16444436,118530.0,118520.0,1.01196872]
[1753300075649,0.03364436,118530.0,118520.0,1.01712872]
[1753300075843,0.13290436,118530.0,118520.0,1.01712872]
[1753300076271,0.14860436,118530.0,118520.0,1.01712872]
[1753300076480,0.03192436,118530.0,118520.0,1.14788872]
[1753300076698,0.00012436,118530.0,118520.0,1.14788872]
[1753300077479,0.00012436,118530.0,118520.0,1.16358872]
[1753300077688,0.00012436,118530.0,118520.0,1.17928872]
[1753300079187,0.00012436,118530.0,118520.0,1.16358872]
[1753300079399,0.00012436,118530.0,118520.0,1.14788872]
[1753300083031,0.00012436,118530.0,118520.0,1.16358872]
[1753300084039,0.00012436,118530.0,118520.0,1.26386602]
[1753300084888,0.00012436,118530.0,118520.0,1.24806602]
[1753300085105,0.40012436,118530.0,118520.0,1.23236602]
[1753300087408,0.40012436,118530.0,118520.0,1.26416602]
[1753300087818,0.40012436,118530.0,118520.0,0.4482565]
[1753300087990,0.40012436,118530.0,118520.0,1.24846602]
[1753300088151,0.40012436,118530.0,118520.0,1.23236602]
[1753300090282,0.00012436,118530.0,118520.0,1.23236602]
[1753300093858,0.00012436,118530.0,118520.0,1.26486602]
[1753300094037,0.00012436,118530.0,118520.0,1.24846602]
[1753300094389,0.00012436,118530.0,118520.0,1.26486602]
[1753300095880,0.00012436,118530.0,118520.0,1.23236602]
[1753300097063,0.00210436,118530.0,118520.0,1.23236602]
[1753300098110,0.03290436,118530.0,118520.0,1.22720602]
[1753300098315,0.03596436,118530.0,118520.0,1.22720602]
[1753300098752,0.03596436,118530.0,118520.0,1.14272872]
[1753300100210,0.43290436,118530.0,118520.0,1.14272872]
[1753300100450,0.43290436,118530.0,118520.0,1.14308872]
[1753300103186,0.43290436,118530.0,118520.0,1.14509872]
[1753300106161,0.43290436,118530.0,118520.0,1.01397872]
[1753300106393,0.43290436,118530.0,118520.0,1.14501872]
[1753300107153,0.43290436,118530.0,118520.0,1.01397872]
[1753300107310,0.43290436,118530.0,118520.0,1.14489872]
[1753300108799,0.43290436,118530.0,118520.0,1.14812872]
[1753300109429,0.43290436,118530.0,118520.0,1.14489872]
[1753300109650,0.43290436,118530.0,118520.0,1.14288872]
[1753300109907,0.43596436,118530.0,118520.0,1.14288872]
[1753300111515,0.43290436,118530.0,118520.0,1.14288872]
[1753300113426,0.43290436,118530.0,118520.0,1.14502872]
[1753300113881,0.43290436,118530.0,118520.0,1.14796872]
[1753300114519,0.40210436,118530.0,118520.0,1.14796872]
[1753300116871,0.41830436,118530.0,118520.0,1.14796872]
[1753300117958,0.43370436,118530.0,118520.0,1.14796872]
[1753300119633,0.40210436,118530.0,118520.0,1.14796872]
[1753300121356,0.40012436,118530.0,118520.0,1.14796872]
[1753300124150,0.40213436,118530.0,118520.0,1.14796872]
[1753300129324,0.40012436,118530.0,118520.0,1.14796872]
[1753300129544,0.40012436,118530.0,118520.0,1.16316872]
[1753300130911,0.40012436,118530.0,118520.0,1.26414602]
[1753300132075,1e-08,118530.0,118520.0,2.01210078]
[1753300132296,0.1,118550.0,118540.0,0.19402645]
[1753300132517,0.1,118550.0,118540.0,1.17651597]
[1753300132518,0.5,118550.0,118540.0,1.17651597]
[1753300132784,0.5,118550.0,118540.0,1.17945597]
[1753300133252,0.5,118550.0,118540.0,1.26393327]
[1753300134545,0.50004908,118550.0,118540.0,1.26393327]
[1753300135411,0.10004908,118550.0,118540.0,1.26393327]
[1753300137146,0.10004908,118550.0,118540.0,1.26493327]
[1753300137388,0.10004908,118550.0,118540.0,1.17373659]
[1753300137593,0.10004908,118550.0,118540.0,1.51373659]
[1753300137808,0.4,118560.0,118550.0,0.95032293]
[1753300138081,0.4,118560.0,118550.0,1.17264023]
[1753300138720,0.4,118560.0,118550.0,1.03988023]
[1753300138906,0.4,118560.0,118550.0,1.17260023]
[1753300140012,0.0002,118570.0,118560.0,0.19399372]
[1753300140231,0.00024907,118570.0,118560.0,1.16964386]
[1753300140473,0.00024907,118570.0,118560.0,1.17258386]
[1753300140733,0.00024907,118570.0,118560.0,0.44787102]
[1753300140970,0.00024907,118570.0,118560.0,1.26157947]
[1753300144842,1e-08,118570.0,118560.0,1.60157947]
[1753300145707,1e-08,118570.0,118560.0,1.23922305]
[1753300146557,1e-08,118580.0,118570.0,0.56437741]
[1753300146777,1e-08,118580.0,118570.0,0.78670471]
[1753300146989,1e-08,118580.0,118570.0,1.17019388]
[1753300148559,1e-08,118580.0,118570.0,1.17011388]
[1753300150773,0.00100001,118580.0,118570.0,1.17011388]
[1753300153001,0.00100001,118580.0,118570.0,1.13398113]
[1753300155871,0.00100001,118580.0,118570.0,1.15038113]
[1753300156725,0.00100001,118580.0,118570.0,1.15094113]
[1753300160247,0.00100001,118580.0,118570.0,1.13454113]
[1753300162607,0.00100001,118580.0,118570.0,1.13458113]
[1753300162821,0.00100001,118580.0,118570.0,1.00134113]
[1753300163547,0.00100001,118580.0,118570.0,0.98584113]
[1753300163769,0.00100001,118580.0,118570.0,1.11892113]
[1753300163988,0.00100001,118580.0,118570.0,0.75656471]
[1753300164195,0.00100001,118580.0,118570.0,1.11892113]
[1753300164402,0.00100001,118580.0,118570.0,0.98584113]
[1753300164617,0.00100001,118580.0,118570.0,1.11892113]
[1753300165063,0.00100001,118580.0,118570.0,0.98584113]
[1753300165281,0.00100001,118580.0,118570.0,1.11892113]
[1753300165932,0.00100001,118580.0,118570.0,1.51277755]
[1753300166162,0.00100001,118580.0,118570.0,1.15042113]
[1753300166862,0.00100001,118580.0,118570.0,1.13392113]
[1753300169245,0.00100001,118580.0,118570.0,1.58643237]
[1753300172041,0.00100001,118580.0,118570.0,1.60203237]
[1753300174214,0.00100001,118580.0,118570.0,1.45335237]
[1753300174651,0.00100001,118580.0,118570.0,1.43835237]
[1753300175109,0.00100001,118580.0,118570.0,1.46915237]
[1753300175332,0.00100001,118580.0,118570.0,1.60179237]
[1753300175558,0.00100001,118580.0,118570.0,1.45405237]
[1753300175772,0.00100001,118580.0,118570.0,1.43835237]
[1753300175989,0.00100001,118580.0,118570.0,1.57095237]
[1753300176771,0.00100001,118580.0,118570.0,1.60215237]
[1753300176988,1e-08,118590.0,118580.0,0.19396101]
[1753300177217,1e-08,118590.0,118580.0,2.0044998]
[1753300177445,0.00030085,118600.0,118590.0,1.00881231]
[1753300177677,0.00030085,118600.0,118590.0,1.22791961]
[1753300177898,0.00030085,118600.0,118590.0,1.23085961]
[1753300178105,0.00030085,118600.0,118590.0,1.63829344]
[1753300178327,0.00030085,118600.0,118590.0,1.65329344]
[1753300179018,0.00030085,118600.0,118590.0,1.63829344]
[1753300179244,0.00030085,118600.0,118590.0,1.14015049]
[1753300179698,0.00030085,118600.0,118590.0,1.14115049]
[1753300180902,1e-08,118600.0,118590.0,1.59752705]
[1753300181149,1e-08,118610.0,118600.0,0.5652283]
[1753300181395,0.00014726,118610.0,118600.0,1.51143414]
[1753300182115,0.03279726,118610.0,118600.0,1.48009414]
[1753300182368,0.03279726,118610.0,118600.0,1.47715414]
[1753300182611,0.00209726,118610.0,118600.0,1.50542614]
[1753300182937,0.00014726,118610.0,118600.0,1.48009414]
[1753300182945,0.00014726,118610.0,118600.0,1.48309414]
[1753300184533,0.00014726,118610.0,118600.0,1.48509414]
[1753300186797,0.00014726,118610.0,118600.0,1.50079414]
[1753300187756,0.00014726,118610.0,118600.0,1.51729414]
[1753300188469,0.00014726,118610.0,118600.0,1.50079414]
[1753300189225,0.00014726,118610.0,118600.0,1.48509414]
[1753300193340,0.00014726,118610.0,118600.0,1.48381501]
[1753300194206,0.00014726,118610.0,118600.0,0.75965647]
[1753300194428,0.00014726,118610.0,118600.0,1.48381501]
[1753300195378,0.03299726,118610.0,118600.0,1.34628501]
[1753300195676,0.03623726,118610.0,118600.0,1.47920501]
[1753300196171,0.03299726,118610.0,118600.0,1.47920501]
[1753300196636,0.03299726,118610.0,118600.0,1.34628501]
[1753300196871,0.03299726,118610.0,118600.0,1.47928501]
[1753300197114,0.03623726,118610.0,118600.0,1.39476771]
[1753300197832,0.03623726,118610.0,118600.0,0.56100757]
[1753300198337,0.03623726,118610.0,118600.0,0.55800757]
[1753300198553,0.03623726,118610.0,118600.0,0.92208684]
[1753300198780,0.04466761,118610.0,118600.0,0.92008684]
[1753300198998,0.03623726,118610.0,118600.0,0.92008684]
[1753300199216,0.03623726,118610.0,118600.0,0.92108684]
[1753300200402,0.45619588,118610.0,118600.0,0.003]
[1753300200627,0.45619588,118610.0,118600.0,0.17163406]
[1753300200857,0.44776525,118610.0,118600.0,0.003]
[1753300201087,0.78776525,118610.0,118600.0,0.003]
[1753300201317,0.81354821,118610.0,118600.0,0.001]
[1753300201540,1.03118551,118610.0,118600.0,0.001]
[1753300201762,0.19826403,118590.0,118580.0,0.53917482]
[1753300202029,0.34180637,118590.0,118580.0,0.54760794]
[1753300202273,0.33657389,118590.0,118580.0,0.55604063]
[1753300202497,0.31971,118590.0,118580.0,0.20239406]
[1753300202716,0.4002307,118590.0,118580.0,0.56447333]
[1753300202940,0.4012307,118590.0,118580.0,0.56447333]
[1753300203153,0.32071,118590.0,118580.0,0.56447333]
[1753300203647,0.32914177,118590.0,118580.0,0.56447333]
[1753300204115,0.33757368,118590.0,118580.0,0.5644734]
[1753300204332,0.35443786,118590.0,118580.0,0.54760787]
[1753300204574,0.32914177,118590.0,118580.0,0.57290624]
[1753300204794,0.33757361,118590.0,118580.0,0.57290638]
[1753300205004,0.32914177,118590.0,118580.0,0.5560405]
[1753300205224,0.32914177,118590.0,118580.0,0.56447312]
[1753300205439,0.32914177,118590.0,118580.0,0.56447319]
[1753300205664,0.34600573,118590.0,118580.0,0.56447326]
[1753300205875,0.4283129,118590.0,118580.0,0.5560405]
[1753300206105,0.32914177,118590.0,118580.0,0.57290595]
[1753300206330,0.32914177,118590.0,118580.0,0.57290559]
[1753300206549,0.33757368,118590.0,118580.0,0.56447297]
[1753300206770,0.32071,118590.0,118580.0,0.57290559]
[1753300207911,0.32914177,118590.0,118580.0,0.57290559]
[1753300208342,0.32071,118590.0,118580.0,0.57290559]
[1753300208532,0.32075,118590.0,118580.0,0.57290559]
[1753300208775,0.32918177,118590.0,118580.0,0.21082632]
[1753300208989,0.32918177,118590.0,118580.0,0.57290559]
[1753300210133,0.32075,118590.0,118580.0,0.57290559]
[1753300211190,0.32918177,118590.0,118580.0,0.57290559]
[1753300211388,0.32075,118590.0,118580.0,0.57290559]
[1753300212371,0.18759,118590.0,118580.0,0.57290559]
[1753300212602,0.31747,118590.0,118580.0,0.57290559]
[1753300214449,0.31731,118590.0,118580.0,0.57290559]
[1753300214680,0.32574177,118590.0,118580.0,0.57290559]
[1753300214935,0.32885177,118590.0,118580.0,0.57290559]
[1753300215232,0.32042,118590.0,118580.0,0.57290559]
[1753300216344,0.18746,118590.0,118580.0,0.57290559]
[1753300216574,0.32885184,118590.0,118580.0,0.55604028]
[1753300216835,0.40710897,118590.0,118580.0,0.55604028]
[1753300217046,0.39867699,118590.0,118580.0,0.57290559]
[1753300217271,0.40710897,118590.0,118580.0,0.55604028]
[1753300217497,0.39867699,118590.0,118580.0,0.57290559]
[1753300217749,0.39855699,118590.0,118580.0,0.57290559]
[1753300217990,0.27414897,118590.0,118580.0,0.56447297]
[1753300218188,0.39855699,118590.0,118580.0,0.56447297]
[1753300218439,0.40694897,118590.0,118580.0,0.2023937]
[1753300218663,0.40694897,118590.0,118580.0,0.56447297]
[1753300218896,0.19589184,118590.0,118580.0,0.57290559]
[1753300219143,0.32869184,118590.0,118580.0,0.57290559]
[1753300219645,0.32869184,118590.0,118580.0,0.56447297]
[1753300219895,0.19589184,118590.0,118580.0,0.57290559]
[1753300220127,0.31719,118590.0,118580.0,0.57780559]
[1753300220996,0.001,118590.0,118580.0,1.04006216]
[1753300221241,0.001,118590.0,118580.0,1.05546216]
[1753300221653,0.001,118590.0,118580.0,0.69338289]
[1753300222650,0.33090824,118610.0,118600.0,0.1939283]
[1753300222851,0.33602824,118610.0,118600.0,0.54757637]
[1753300223065,0.33602824,118610.0,118600.0,0.16863406]
[1753300223066,0.37018697,118610.0,118600.0,0.16863406]
[1753300223266,0.37018697,118610.0,118600.0,0.53914496]
[1753300223474,0.3617562,118610.0,118600.0,0.54757652]
[1753300223674,0.3701869,118610.0,118600.0,0.556008]
[1753300223889,0.3711869,118610.0,118600.0,0.556008]
[1753300224336,0.37961775,118610.0,118600.0,0.54757652]
[1753300224580,0.3711869,118610.0,118600.0,0.54757652]
[1753300224783,0.3711869,118610.0,118600.0,0.556008]
[1753300225055,0.37961767,118610.0,118600.0,0.17706576]
[1753300225293,0.38804859,118610.0,118600.0,0.54757666]
[1753300226208,0.55666843,118610.0,118600.0,0.16863406]
[1753300226457,0.51647697,118610.0,118600.0,0.16863406]
[1753300226674,0.61625427,118610.0,118600.0,0.16863406]
[1753300226914,0.61625427,118610.0,118590.0,0.55601179]
[1753300226915,0.04836254,118600.0,118590.0,0.18550025]
[1753300227122,0.12944497,118600.0,118590.0,0.56444384]
[1753300227351,0.13255497,118600.0,118590.0,0.19393245]
[1753300227628,0.13255497,118600.0,118590.0,0.56444384]
[1753300227859,0.13255497,118600.0,118590.0,0.55601172]
[1753300228062,0.03822384,118600.0,118590.0,0.57287568]
[1753300228901,0.0466549,118600.0,118590.0,0.57287568]
[1753300229125,0.06351737,118600.0,118590.0,0.56444377]
[1753300229542,0.0635173,118600.0,118590.0,0.57287575]
[1753300229755,0.05508603,118600.0,118590.0,0.57287568]
[1753300229961,0.0466549,118600.0,118590.0,0.57287568]
[1753300230238,0.0550861,118600.0,118590.0,0.57287568]
[1753300230475,0.0550861,118600.0,118590.0,0.2023645]
[1753300230476,0.06351737,118600.0,118590.0,0.2023645]
[1753300230702,0.06351737,118600.0,118590.0,0.57287575]
[1753300231079,0.0550861,118600.0,118590.0,0.55601136]
[1753300231299,0.06351744,118600.0,118590.0,0.55601136]
[1753300231518,0.0550861,118600.0,118590.0,0.57287525]
[1753300232144,0.0466549,118600.0,118590.0,0.57287525]
[1753300232566,0.0519761,118600.0,118590.0,0.57287525]
[1753300232777,0.05197617,118600.0,118590.0,0.55601136]
[1753300233396,0.0435449,118600.0,118590.0,0.57287525]
[1753300233816,0.05197603,118600.0,118590.0,0.57287525]
[1753300234454,0.0435449,118600.0,118590.0,0.57287525]
[1753300234669,0.03511384,118600.0,118590.0,0.57287525]
[1753300235087,0.04354497,118600.0,118590.0,0.57287525]
[1753300235303,0.03511384,118600.0,118590.0,0.57287525]
[1753300235722,0.13639384,118600.0,118590.0,0.57813525]
[1753300235933,0.14482497,118600.0,118590.0,0.18550004]
[1753300236146,0.1758249,118600.0,118590.0,0.56444334]
[1753300236348,0.17422106,118600.0,118590.0,0.56444334]
[1753300236598,0.16579,118600.0,118590.0,0.56444334]
[1753300236826,0.16739384,118600.0,118590.0,0.56444334]
[1753300237187,0.16739384,118600.0,118590.0,0.56657334]
[1753300237393,0.1758249,118600.0,118590.0,0.56657334]
[1753300237590,0.17422106,118600.0,118590.0,0.56657334]
[1753300237756,0.18265219,118600.0,118590.0,0.56657334]
[1753300238177,0.04154106,118600.0,118590.0,0.56657334]
[1753300238376,0.04154106,118600.0,118590.0,0.36207927]
[1753300238377,0.41184815,118600.0,118590.0,0.36207927]
[1753300238586,0.01686524,118580.0,118570.0,0.530756]
[1753300238809,0.01686524,118580.0,118570.0,0.54762345]
[1753300238810,0.18561908,118580.0,118570.0,0.54762345]
[1753300239024,0.18703524,118580.0,118570.0,0.54762359]
[1753300239364,0.36413137,118580.0,118570.0,0.530756]
[1753300239570,0.43240934,118580.0,118570.0,0.530756]
[1753300240167,0.43240934,118580.0,118570.0,0.53918983]
[1753300240443,0.26374677,118580.0,118570.0,0.53918983]
[1753300240647,0.1964688,118580.0,118570.0,0.53918983]